[Event "*** Titled Tuesday Blitz"]
[Site "Chess.com"]
[Date "2019.08.06"]
[Round "4"]
[White "Lion_DL"]
[Black "nitpicker"]
[Result "1-0"]
[WhiteElo "2343"]
[BlackElo "2244"]
[TimeControl "180+2"]
[EndTime "13:50:54 PDT"]
[Termination "Lion_DL won on time"]

1. e4 {[%clk 0:03:01.9]} 1... d5 {[%clk 0:03:00.1]} 2. exd5 {[%clk 0:03:02.5]}
2... Qxd5 {[%clk 0:03:01]} 3. Nc3 {[%clk 0:03:02.9]} 3... Qd8 {[%clk 0:03:01.7]}
4. Bc4 {[%clk 0:03:03]} 4... Nf6 {[%clk 0:03:01.3]} 5. d4 {[%clk 0:03:01.4]}
5... c6 {[%clk 0:02:58.4]} 6. Nf3 {[%clk 0:03:01.9]} 6... Bf5 {[%clk 0:02:57.4]}
7. h3 {[%clk 0:02:59.9]} 7... h6 {[%clk 0:02:57.1]} 8. Bf4 {[%clk 0:02:56.1]}
8... e6 {[%clk 0:02:57.1]} 9. Bb3 {[%clk 0:02:52.5]} 9... Bd6 {[%clk 0:02:56.4]}
10. Qd2 {[%clk 0:02:52.7]} 10... Qc7 {[%clk 0:02:56.5]} 11. Bxd6 {[%clk
0:02:49.2]} 11... Qxd6 {[%clk 0:02:58.4]} 12. O-O-O {[%clk 0:02:49.6]} 12...
Nbd7 {[%clk 0:02:52.5]} 13. g4 {[%clk 0:02:50.1]} 13... Bh7 {[%clk 0:02:41.1]}
14. g5 {[%clk 0:02:41.7]} 14... hxg5 {[%clk 0:02:31.4]} 15. Nxg5 {[%clk
0:02:42.5]} 15... Bg6 {[%clk 0:02:32.6]} 16. f3 {[%clk 0:02:20.5]} 16... O-O-O
{[%clk 0:02:20]} 17. Nce4 {[%clk 0:02:21]} 17... Qc7 {[%clk 0:02:11.1]} 18. Qg2
{[%clk 0:02:18.5]} 18... Rh6 {[%clk 0:02:04.4]} 19. Kb1 {[%clk 0:01:49.3]} 19...
Nd5 {[%clk 0:01:59.2]} 20. Nxf7 {[%clk 0:01:37.1]} 20... Ne3 {[%clk 0:01:18.2]}
21. Qg5 {[%clk 0:01:23.6]} 21... Bxe4 {[%clk 0:00:57.4]} 22. Qxe3 {[%clk
0:01:20.8]} 22... Bxf3 {[%clk 0:00:39.3]} 23. Nxh6 {[%clk 0:01:03.7]} 23... Bxh1
{[%clk 0:00:32.6]} 24. Rxh1 {[%clk 0:01:03.2]} 24... gxh6 {[%clk 0:00:33.7]} 25.
Qxh6 {[%clk 0:01:02.9]} 25... e5 {[%clk 0:00:30.9]} 26. dxe5 {[%clk 0:00:59.5]}
26... Nxe5 {[%clk 0:00:31.9]} 27. a3 {[%clk 0:00:57.2]} 27... a6 {[%clk
0:00:31.3]} 28. h4 {[%clk 0:00:57.4]} 28... Nf3 {[%clk 0:00:26.4]} 29. h5 {[%clk
0:00:51.3]} 29... Nd2+ {[%clk 0:00:24.8]} 30. Ka2 {[%clk 0:00:47]} 30... Nxb3
{[%clk 0:00:25.6]} 31. cxb3 {[%clk 0:00:48.9]} 31... Qf7 {[%clk 0:00:20.8]} 32.
Qe3 {[%clk 0:00:40.2]} 32... Re8 {[%clk 0:00:14.3]} 33. Qg3 {[%clk 0:00:31.2]}
33... Rg8 {[%clk 0:00:04.4]} 34. Qh3+ {[%clk 0:00:29.4]} 34... Kb8 {[%clk
0:00:05.5]} 35. h6 {[%clk 0:00:31.2]} 1-0

[Event "*** Titled Tuesday Blitz"]
[Site "Chess.com"]
[Date "2019.08.06"]
[Round "4"]
[White "Wolverine_master"]
[Black "gemarin"]
[Result "0-1"]
[WhiteElo "2118"]
[BlackElo "2078"]
[TimeControl "180+2"]
[EndTime "13:51:01 PDT"]
[Termination "gemarin won by resignation"]

1. e4 {[%clk 0:03:01.9]} 1... c5 {[%clk 0:03:00]} 2. Nf3 {[%clk 0:03:02.3]} 2...
Nc6 {[%clk 0:03:00.5]} 3. d4 {[%clk 0:03:03.8]} 3... cxd4 {[%clk 0:03:01]} 4.
Nxd4 {[%clk 0:03:05.4]} 4... Nf6 {[%clk 0:03:02.4]} 5. Nc3 {[%clk 0:03:06.4]}
5... d6 {[%clk 0:03:03]} 6. Bg5 {[%clk 0:03:06.7]} 6... e6 {[%clk 0:03:03.5]} 7.
Qd2 {[%clk 0:03:07.8]} 7... a6 {[%clk 0:03:03]} 8. O-O-O {[%clk 0:03:08.3]} 8...
h6 {[%clk 0:03:03]} 9. Bh4 {[%clk 0:02:59]} 9... Bd7 {[%clk 0:03:02.4]} 10. f4
{[%clk 0:02:56.9]} 10... Nxe4 {[%clk 0:02:52.5]} 11. Nxe4 {[%clk 0:02:44.2]}
11... Qxh4 {[%clk 0:02:51.2]} 12. Nxc6 {[%clk 0:02:43.9]} 12... Bxc6 {[%clk
0:02:45.5]} 13. Nxd6+ {[%clk 0:02:44.7]} 13... Bxd6 {[%clk 0:02:45.3]} 14. Qxd6
{[%clk 0:02:46.1]} 14... Rd8 {[%clk 0:02:37.5]} 15. Qxd8+ {[%clk 0:02:36.8]}
15... Qxd8 {[%clk 0:02:37.3]} 16. Rxd8+ {[%clk 0:02:38.7]} 16... Kxd8 {[%clk
0:02:38.4]} 17. Bd3 {[%clk 0:02:35.6]} 17... Ke7 {[%clk 0:02:28.9]} 18. Re1
{[%clk 0:02:32.6]} 18... Rd8 {[%clk 0:02:20.3]} 19. g3 {[%clk 0:02:32.5]} 19...
Kf6 {[%clk 0:02:09.1]} 20. Be4 {[%clk 0:02:30]} 20... Bxe4 {[%clk 0:01:59.9]}
21. Rxe4 {[%clk 0:02:31.9]} 21... Rd5 {[%clk 0:01:59.3]} 22. c4 {[%clk
0:02:31.5]} 22... Rd3 {[%clk 0:01:57.8]} 23. Kc2 {[%clk 0:02:14.7]} 23... Rf3
{[%clk 0:01:58.1]} 24. Rd4 {[%clk 0:02:14.7]} 24... Ke7 {[%clk 0:01:58]} 25. b4
{[%clk 0:02:12.1]} 25... Rf2+ {[%clk 0:01:56.3]} 26. Rd2 {[%clk 0:02:12.8]}
26... Rf3 {[%clk 0:01:52.2]} 27. Rd3 {[%clk 0:02:12.7]} 27... Rf1 {[%clk
0:01:52.4]} 28. Rd1 {[%clk 0:02:12.7]} 28... Rxd1 {[%clk 0:01:39.1]} 29. Kxd1
{[%clk 0:02:13.3]} 29... e5 {[%clk 0:01:40.7]} 30. fxe5 {[%clk 0:01:55.9]} 30...
Ke6 {[%clk 0:01:41.2]} 31. Ke2 {[%clk 0:01:57.5]} 31... Kxe5 {[%clk 0:01:42.2]}
32. Ke3 {[%clk 0:01:59.4]} 32... f5 {[%clk 0:01:42.3]} 33. a4 {[%clk 0:01:59]}
33... g5 {[%clk 0:01:37.2]} 34. c5 {[%clk 0:01:56.5]} 34... Kd5 {[%clk
0:01:34.7]} 35. h4 {[%clk 0:01:49.2]} 35... a5 {[%clk 0:01:30.9]} 36. bxa5
{[%clk 0:00:36.8]} 36... Kxc5 {[%clk 0:01:29.8]} 37. h5 {[%clk 0:00:38.2]} 37...
Kd5 {[%clk 0:01:29.2]} 38. Kd3 {[%clk 0:00:38.7]} 38... f4 {[%clk 0:01:25.5]}
39. gxf4 {[%clk 0:00:38.1]} 39... gxf4 {[%clk 0:01:26]} 40. Ke2 {[%clk
0:00:37.6]} 40... Ke4 {[%clk 0:01:26.8]} 41. Kf2 {[%clk 0:00:38.6]} 41... Ke5
{[%clk 0:01:23.4]} 42. Ke2 {[%clk 0:00:34.3]} 42... Kf5 {[%clk 0:01:20.2]} 43.
Kf3 {[%clk 0:00:18.6]} 43... Kg5 {[%clk 0:01:20.6]} 44. Ke4 {[%clk 0:00:20.1]}
44... Kg4 {[%clk 0:01:21.8]} 45. Kd5 {[%clk 0:00:20.5]} 45... f3 {[%clk
0:01:22.9]} 46. Kc5 {[%clk 0:00:22.4]} 46... f2 {[%clk 0:01:24.1]} 47. Kb6
{[%clk 0:00:24.3]} 47... f1=Q {[%clk 0:01:25.1]} 48. Kxb7 {[%clk 0:00:26.2]}
48... Qf3+ {[%clk 0:01:19.4]} 49. Kb6 {[%clk 0:00:26.5]} 49... Qe3+ {[%clk
0:01:19]} 50. Kb7 {[%clk 0:00:26.9]} 50... Qe4+ {[%clk 0:01:19.6]} 51. Ka7
{[%clk 0:00:27]} 51... Qxa4 {[%clk 0:01:19.7]} 52. a6 {[%clk 0:00:28.9]} 52...
Kxh5 {[%clk 0:01:19.3]} 53. Kb7 {[%clk 0:00:29.7]} 53... Kg4 {[%clk 0:01:20.1]}
54. a7 {[%clk 0:00:31.6]} 54... h5 {[%clk 0:01:21]} 55. a8=Q {[%clk 0:00:32.7]}
55... Qxa8+ {[%clk 0:01:21.4]} 56. Kxa8 {[%clk 0:00:34.6]} 56... h4 {[%clk
0:01:22.2]} 0-1

[Event "*** Titled Tuesday Blitz"]
[Site "Chess.com"]
[Date "2019.08.06"]
[Round "4"]
[White "pandamaster3000"]
[Black "HanSchut"]
[Result "1-0"]
[WhiteElo "2312"]
[BlackElo "2203"]
[TimeControl "180+2"]
[EndTime "13:51:02 PDT"]
[Termination "pandamaster3000 won by resignation"]

1. e4 {[%clk 0:03:01.9]} 1... c5 {[%clk 0:02:59.3]} 2. Nf3 {[%clk 0:03:03.2]}
2... d6 {[%clk 0:02:58.9]} 3. Bb5+ {[%clk 0:03:03.8]} 3... Nd7 {[%clk
0:02:59.3]} 4. d4 {[%clk 0:03:03.4]} 4... cxd4 {[%clk 0:02:59.8]} 5. Qxd4 {[%clk
0:03:05.3]} 5... a6 {[%clk 0:03:00.8]} 6. Bxd7+ {[%clk 0:03:06.5]} 6... Qxd7
{[%clk 0:03:01]} 7. c4 {[%clk 0:03:08.4]} 7... Nf6 {[%clk 0:02:58.5]} 8. Bg5
{[%clk 0:03:00.7]} 8... Qg4 {[%clk 0:02:50.8]} 9. Nbd2 {[%clk 0:02:16.4]} 9...
Qxg2 {[%clk 0:02:25.1]} 10. Rg1 {[%clk 0:02:10.1]} 10... Qh3 {[%clk 0:02:24.8]}
11. O-O-O {[%clk 0:02:11.1]} 11... e5 {[%clk 0:01:57.2]} 12. Qd3 {[%clk
0:01:53.9]} 12... Nh5 {[%clk 0:01:49.4]} 13. Qb3 {[%clk 0:01:28.9]} 13... f6
{[%clk 0:01:23.1]} 14. Be3 {[%clk 0:01:29.7]} 14... g5 {[%clk 0:01:07.9]} 15.
Kb1 {[%clk 0:01:02.9]} 15... Be7 {[%clk 0:01:05]} 16. Rc1 {[%clk 0:00:47.8]}
16... h6 {[%clk 0:00:56.3]} 17. Rgd1 {[%clk 0:00:40]} 17... O-O {[%clk
0:00:42.6]} 18. c5+ {[%clk 0:00:39.2]} 18... Be6 {[%clk 0:00:34.7]} 19. Qxb7
{[%clk 0:00:39.4]} 19... Rad8 {[%clk 0:00:27.4]} 20. c6 {[%clk 0:00:36.9]} 20...
Rf7 {[%clk 0:00:16.1]} 21. Qxa6 {[%clk 0:00:21.4]} 21... Nf4 {[%clk 0:00:10.1]}
22. Bxf4 {[%clk 0:00:20.2]} 22... exf4 {[%clk 0:00:10.4]} 23. c7 {[%clk
0:00:21.3]} 23... Rc8 {[%clk 0:00:11.2]} 24. Nd4 {[%clk 0:00:21]} 24... Bf8
{[%clk 0:00:11.2]} 25. Nxe6 {[%clk 0:00:21.6]} 25... Qxe6 {[%clk 0:00:13.1]} 26.
Qb7 {[%clk 0:00:17]} 26... Qd7 {[%clk 0:00:12.1]} 27. Qd5 {[%clk 0:00:11.7]}
27... Rxc7 {[%clk 0:00:11.5]} 28. Rxc7 {[%clk 0:00:13.1]} 28... Qxc7 {[%clk
0:00:13.4]} 29. Rc1 {[%clk 0:00:14.6]} 29... Qe7 {[%clk 0:00:13.6]} 30. Nf3
{[%clk 0:00:15.7]} 30... Kg7 {[%clk 0:00:14.2]} 31. Nd4 {[%clk 0:00:17.2]} 31...
Qb7 {[%clk 0:00:11.9]} 32. Nf5+ {[%clk 0:00:18.3]} 32... Kh7 {[%clk 0:00:12.1]}
33. Qe6 {[%clk 0:00:18.9]} 33... Qd7 {[%clk 0:00:11.5]} 34. Qd5 {[%clk
0:00:19.6]} 34... Bg7 {[%clk 0:00:10]} 35. f3 {[%clk 0:00:20.3]} 35... Qe8
{[%clk 0:00:10.5]} 36. Nxd6 {[%clk 0:00:20.3]} 36... Qf8 {[%clk 0:00:10.1]} 37.
Qxf7 {[%clk 0:00:20.9]} 37... Qxd6 {[%clk 0:00:10.6]} 38. Qd5 {[%clk 0:00:21.5]}
38... Qa6 {[%clk 0:00:10.2]} 39. Qf5+ {[%clk 0:00:22]} 39... Kg8 {[%clk
0:00:09.8]} 40. Rc8+ {[%clk 0:00:22.8]} 40... Bf8 {[%clk 0:00:11.2]} 41. Qg6+
{[%clk 0:00:23.4]} 1-0

[Event "*** Titled Tuesday Blitz"]
[Site "Chess.com"]
[Date "2019.08.06"]
[Round "4"]
[White "Samantha_Ross"]
[Black "novocane"]
[Result "1-0"]
[WhiteElo "2086"]
[BlackElo "2174"]
[TimeControl "180+2"]
[EndTime "13:51:03 PDT"]
[Termination "Samantha_Ross won by resignation"]

1. c4 {[%clk 0:03:01.9]} 1... e5 {[%clk 0:03:00.7]} 2. d3 {[%clk 0:03:02.4]}
2... Nc6 {[%clk 0:02:57]} 3. Nf3 {[%clk 0:03:03.9]} 3... Nf6 {[%clk 0:02:57.5]}
4. Nc3 {[%clk 0:03:04]} 4... Bb4 {[%clk 0:02:58.4]} 5. g3 {[%clk 0:03:00.6]}
5... d5 {[%clk 0:02:59.1]} 6. cxd5 {[%clk 0:03:01.3]} 6... Nxd5 {[%clk
0:02:59.9]} 7. Bd2 {[%clk 0:03:02.4]} 7... O-O {[%clk 0:02:56.7]} 8. Bg2 {[%clk
0:03:00.5]} 8... Be6 {[%clk 0:02:55.3]} 9. O-O {[%clk 0:02:55]} 9... f6 {[%clk
0:02:53.3]} 10. Nxd5 {[%clk 0:02:48.4]} 10... Bxd5 {[%clk 0:02:52.3]} 11. Bxb4
{[%clk 0:02:49.6]} 11... Nxb4 {[%clk 0:02:53.7]} 12. a3 {[%clk 0:02:48]} 12...
Nc6 {[%clk 0:02:53.5]} 13. b4 {[%clk 0:02:49.2]} 13... a6 {[%clk 0:02:54.6]} 14.
Rc1 {[%clk 0:02:49.6]} 14... Qd7 {[%clk 0:02:55.2]} 15. Rc5 {[%clk 0:02:50.5]}
15... Be6 {[%clk 0:02:35.4]} 16. Qc2 {[%clk 0:02:44.3]} 16... Bh3 {[%clk
0:02:28]} 17. Bxh3 {[%clk 0:02:32.6]} 17... Qxh3 {[%clk 0:02:29.9]} 18. Qc4+
{[%clk 0:02:31.2]} 18... Kh8 {[%clk 0:02:28.5]} 19. a4 {[%clk 0:02:28.7]} 19...
Rad8 {[%clk 0:02:21.3]} 20. b5 {[%clk 0:02:27.7]} 20... Nd4 {[%clk 0:02:16.9]}
21. Nxd4 {[%clk 0:02:22.8]} 21... Rxd4 {[%clk 0:02:17.3]} 22. Qc2 {[%clk
0:02:21.9]} 22... f5 {[%clk 0:01:48.9]} 23. Rxc7 {[%clk 0:01:32.6]} 23... f4
{[%clk 0:01:47.3]} 24. Qc5 {[%clk 0:01:30.2]} 24... Re8 {[%clk 0:01:13.6]} 25.
Rxb7 {[%clk 0:01:19.5]} 25... Rxd3 {[%clk 0:00:55.9]} 26. Qc7 {[%clk 0:01:06.2]}
26... Rg8 {[%clk 0:00:23.9]} 27. Qxe5 {[%clk 0:00:31.6]} 27... Rd7 {[%clk
0:00:08.4]} 28. Rxd7 {[%clk 0:00:27.9]} 28... Qxd7 {[%clk 0:00:08.9]} 29. b6
{[%clk 0:00:22.8]} 29... Qxa4 {[%clk 0:00:09.1]} 30. Rb1 {[%clk 0:00:17.2]}
30... fxg3 {[%clk 0:00:09.2]} 31. hxg3 {[%clk 0:00:16.4]} 31... Qe8 {[%clk
0:00:08.6]} 32. Qxe8 {[%clk 0:00:09.3]} 32... Rxe8 {[%clk 0:00:09.9]} 33. b7
{[%clk 0:00:11.2]} 33... Rb8 {[%clk 0:00:06.9]} 34. Rc1 {[%clk 0:00:11.8]} 1-0

[Event "*** Titled Tuesday Blitz"]
[Site "Chess.com"]
[Date "2019.08.06"]
[Round "4"]
[White "Chigorinetz"]
[Black "Litti"]
[Result "0-1"]
[WhiteElo "2617"]
[BlackElo "2490"]
[TimeControl "180+2"]
[EndTime "13:51:06 PDT"]
[Termination "Litti won by resignation"]

1. e4 {[%clk 0:03:01.9]} 1... c5 {[%clk 0:03:01]} 2. Nc3 {[%clk 0:03:01.9]} 2...
Nc6 {[%clk 0:03:01.5]} 3. Nge2 {[%clk 0:03:02.5]} 3... e6 {[%clk 0:03:02.4]} 4.
g3 {[%clk 0:03:02.4]} 4... Nf6 {[%clk 0:03:02.8]} 5. Bg2 {[%clk 0:03:02.8]} 5...
d5 {[%clk 0:03:03.9]} 6. exd5 {[%clk 0:03:02.9]} 6... exd5 {[%clk 0:03:05.8]} 7.
d4 {[%clk 0:03:03.4]} 7... cxd4 {[%clk 0:03:05.2]} 8. Nxd4 {[%clk 0:03:03.5]}
8... Bc5 {[%clk 0:03:06.2]} 9. Be3 {[%clk 0:03:02.6]} 9... Nxd4 {[%clk
0:03:03.5]} 10. Bxd4 {[%clk 0:03:02.4]} 10... Bxd4 {[%clk 0:02:52.8]} 11. Qxd4
{[%clk 0:03:02]} 11... Be6 {[%clk 0:02:53.3]} 12. O-O {[%clk 0:03:01.6]} 12...
O-O {[%clk 0:02:53.9]} 13. Rad1 {[%clk 0:02:59.4]} 13... Qa5 {[%clk 0:02:53.4]}
14. Rfe1 {[%clk 0:02:51.9]} 14... Rfd8 {[%clk 0:02:52.6]} 15. h3 {[%clk
0:02:35.4]} 15... h6 {[%clk 0:02:52.2]} 16. a3 {[%clk 0:02:26.1]} 16... Rac8
{[%clk 0:02:52.6]} 17. Qb4 {[%clk 0:02:15]} 17... Qxb4 {[%clk 0:02:47.9]} 18.
axb4 {[%clk 0:02:15.4]} 18... d4 {[%clk 0:02:49.3]} 19. Nb5 {[%clk 0:02:04.7]}
19... Rxc2 {[%clk 0:02:48.1]} 20. Nxd4 {[%clk 0:02:02.2]} 20... Rxb2 {[%clk
0:02:47]} 21. b5 {[%clk 0:01:31.7]} 21... a6 {[%clk 0:02:02]} 22. g4 {[%clk
0:01:02.4]} 22... axb5 {[%clk 0:01:57.9]} 23. Nxe6 {[%clk 0:00:54.1]} 23... Rxd1
{[%clk 0:01:56.9]} 24. Rxd1 {[%clk 0:00:55.1]} 24... fxe6 {[%clk 0:01:57.5]} 25.
Rd8+ {[%clk 0:00:56.8]} 25... Kf7 {[%clk 0:01:49.2]} 26. Rb8 {[%clk 0:00:56.7]}
26... Nd5 {[%clk 0:01:42.4]} 27. Rxb7+ {[%clk 0:00:55.8]} 27... Kf6 {[%clk
0:01:43.1]} 28. h4 {[%clk 0:00:33.6]} 28... b4 {[%clk 0:01:33.7]} 29. Be4 {[%clk
0:00:30.1]} 29... Nf4 {[%clk 0:01:23.7]} 30. Kh2 {[%clk 0:00:21.2]} 30... g5
{[%clk 0:01:20.2]} 31. h5 {[%clk 0:00:19.9]} 31... Rxf2+ {[%clk 0:01:16.7]} 32.
Kg3 {[%clk 0:00:20.7]} 32... Rb2 {[%clk 0:01:16]} 33. Rh7 {[%clk 0:00:19.6]}
33... b3 {[%clk 0:01:04.4]} 34. Rxh6+ {[%clk 0:00:18.4]} 34... Ke5 {[%clk
0:01:05.5]} 35. Bh7 {[%clk 0:00:19.2]} 35... Rg2+ {[%clk 0:00:53.6]} 36. Kf3
{[%clk 0:00:19.9]} 36... b2 {[%clk 0:00:54.2]} 37. Be4 {[%clk 0:00:11.8]} 37...
Re2 {[%clk 0:00:45.3]} 38. Bb1 {[%clk 0:00:11.8]} 38... Re1 {[%clk 0:00:40.2]}
39. Bc2 {[%clk 0:00:12.3]} 39... Rc1 {[%clk 0:00:36.6]} 40. Bh7 {[%clk
0:00:11.2]} 40... Rc3+ {[%clk 0:00:36.3]} 41. Kf2 {[%clk 0:00:12.1]} 41... Nd3+
{[%clk 0:00:36.1]} 42. Bxd3 {[%clk 0:00:07.9]} 42... Rxd3 {[%clk 0:00:38]} 0-1

[Event "*** Titled Tuesday Blitz"]
[Site "Chess.com"]
[Date "2019.08.06"]
[Round "4"]
[White "smshk35"]
[Black "saraswathii"]
[Result "0-1"]
[WhiteElo "2338"]
[BlackElo "2356"]
[TimeControl "180+2"]
[EndTime "13:51:16 PDT"]
[Termination "saraswathii won by resignation"]

1. e4 {[%clk 0:03:01.9]} 1... c5 {[%clk 0:03:00.1]} 2. Nf3 {[%clk 0:03:02.8]}
2... e6 {[%clk 0:03:00.5]} 3. g3 {[%clk 0:03:02.9]} 3... Nc6 {[%clk 0:03:00.5]}
4. d3 {[%clk 0:03:03.3]} 4... Nf6 {[%clk 0:03:00.6]} 5. Bg2 {[%clk 0:03:03.6]}
5... d5 {[%clk 0:03:01.1]} 6. Nbd2 {[%clk 0:03:04.6]} 6... dxe4 {[%clk
0:02:58.2]} 7. dxe4 {[%clk 0:03:05.5]} 7... Qc7 {[%clk 0:02:59]} 8. O-O {[%clk
0:03:05.9]} 8... e5 {[%clk 0:03:00]} 9. c3 {[%clk 0:03:06.2]} 9... Be6 {[%clk
0:03:00.6]} 10. h3 {[%clk 0:03:02.2]} 10... h6 {[%clk 0:03:00.7]} 11. Qe2 {[%clk
0:03:02.9]} 11... O-O-O {[%clk 0:03:01.5]} 12. a4 {[%clk 0:03:00.9]} 12... Na5
{[%clk 0:03:01.6]} 13. Re1 {[%clk 0:02:34.8]} 13... c4 {[%clk 0:02:57.1]} 14. b4
{[%clk 0:02:16.3]} 14... cxb3 {[%clk 0:02:56.1]} 15. Bb2 {[%clk 0:02:17.4]}
15... Nc4 {[%clk 0:02:54.3]} 16. Nxc4 {[%clk 0:02:18.2]} 16... Bxc4 {[%clk
0:02:54.3]} 17. Qe3 {[%clk 0:02:13.3]} 17... Bc5 {[%clk 0:02:53.9]} 18. Qc1
{[%clk 0:02:14.1]} 18... Rhe8 {[%clk 0:02:45.1]} 19. a5 {[%clk 0:02:14.2]} 19...
b6 {[%clk 0:02:32.1]} 20. Ba3 {[%clk 0:02:09.2]} 20... bxa5 {[%clk 0:02:26.9]}
21. Bxc5 {[%clk 0:02:09]} 21... Qxc5 {[%clk 0:02:26.3]} 22. Nd2 {[%clk
0:02:05.8]} 22... Re6 {[%clk 0:02:12.7]} 23. Nxc4 {[%clk 0:02:04.7]} 23... Qxc4
{[%clk 0:02:13.1]} 24. Rxa5 {[%clk 0:02:05.7]} 24... Kb7 {[%clk 0:01:58.8]} 25.
Qa3 {[%clk 0:01:55.2]} 25... a6 {[%clk 0:01:34.8]} 26. Bf1 {[%clk 0:01:27.6]}
26... Qxc3 {[%clk 0:01:34.2]} 27. Rc1 {[%clk 0:01:28.7]} 27... Qd4 {[%clk
0:01:11.1]} 28. Rxa6 {[%clk 0:01:02.8]} 28... Rdd6 {[%clk 0:00:55.5]} 29. Qxb3+
{[%clk 0:00:42.2]} 29... Rb6 {[%clk 0:00:53.2]} 30. Qc2 {[%clk 0:00:31.9]} 30...
Rec6 {[%clk 0:00:40.1]} 31. Rxb6+ {[%clk 0:00:24]} 31... Qxb6 {[%clk 0:00:38]}
32. Qd1 {[%clk 0:00:22.5]} 32... Rxc1 {[%clk 0:00:29.1]} 33. Qxc1 {[%clk
0:00:24.4]} 33... Nxe4 {[%clk 0:00:27]} 34. Bg2 {[%clk 0:00:25.7]} 34... Qxf2+
{[%clk 0:00:25.8]} 35. Kh1 {[%clk 0:00:26.9]} 35... f5 {[%clk 0:00:25.1]} 36.
Bxe4+ {[%clk 0:00:16.2]} 36... fxe4 {[%clk 0:00:24.1]} 37. Qb1+ {[%clk
0:00:17.7]} 37... Kc7 {[%clk 0:00:22.1]} 38. Qxe4 {[%clk 0:00:18.9]} 38... Qxg3
{[%clk 0:00:21.7]} 39. h4 {[%clk 0:00:20.1]} 39... Qf4 {[%clk 0:00:20]} 40. Qg6
{[%clk 0:00:20]} 40... Qxh4+ {[%clk 0:00:20.3]} 0-1

[Event "*** Titled Tuesday Blitz"]
[Site "Chess.com"]
[Date "2019.08.06"]
[Round "4"]
[White "Karacsonyi_Gellert"]
[Black "Manukyan_Artak"]
[Result "0-1"]
[WhiteElo "2514"]
[BlackElo "2394"]
[TimeControl "180+2"]
[EndTime "13:51:17 PDT"]
[Termination "Manukyan_Artak won by resignation"]

1. e4 {[%clk 0:03:01.9]} 1... c5 {[%clk 0:02:59.7]} 2. Nf3 {[%clk 0:03:02.6]}
2... a6 {[%clk 0:03:00.5]} 3. c3 {[%clk 0:03:03]} 3... d5 {[%clk 0:03:01.1]} 4.
exd5 {[%clk 0:03:04.2]} 4... Qxd5 {[%clk 0:03:03]} 5. d4 {[%clk 0:03:05.7]} 5...
Bg4 {[%clk 0:03:04]} 6. Be2 {[%clk 0:03:04.9]} 6... e6 {[%clk 0:03:04.9]} 7. O-O
{[%clk 0:03:05.4]} 7... Nf6 {[%clk 0:03:05]} 8. Na3 {[%clk 0:03:06.2]} 8... cxd4
{[%clk 0:03:03.7]} 9. cxd4 {[%clk 0:02:52.3]} 9... Nc6 {[%clk 0:03:02.4]} 10.
Be3 {[%clk 0:02:45.3]} 10... Bxa3 {[%clk 0:02:59.5]} 11. bxa3 {[%clk 0:02:47.2]}
11... O-O {[%clk 0:03:00.4]} 12. h3 {[%clk 0:02:33]} 12... Bh5 {[%clk
0:03:00.7]} 13. Qb3 {[%clk 0:02:28.7]} 13... b5 {[%clk 0:02:58.6]} 14. Rac1
{[%clk 0:02:26.2]} 14... Na5 {[%clk 0:02:28.6]} 15. Qxd5 {[%clk 0:02:23]} 15...
Nxd5 {[%clk 0:02:27.4]} 16. g4 {[%clk 0:02:17.3]} 16... Bg6 {[%clk 0:02:25.4]}
17. Ne5 {[%clk 0:02:18.1]} 17... Rfc8 {[%clk 0:02:18.3]} 18. Bf3 {[%clk
0:02:04.6]} 18... Nc4 {[%clk 0:02:10.2]} 19. Nxg6 {[%clk 0:01:33.5]} 19... hxg6
{[%clk 0:02:10.3]} 20. Bxd5 {[%clk 0:01:34.2]} 20... exd5 {[%clk 0:02:11.1]} 21.
Rc3 {[%clk 0:01:35.2]} 21... f6 {[%clk 0:01:49.3]} 22. Kg2 {[%clk 0:01:29]}
22... Kf7 {[%clk 0:01:46.8]} 23. Kg3 {[%clk 0:01:27.2]} 23... g5 {[%clk
0:01:46.9]} 24. Bc1 {[%clk 0:01:24]} 24... Nd6 {[%clk 0:01:45.9]} 25. Rxc8
{[%clk 0:01:16.2]} 25... Rxc8 {[%clk 0:01:46.3]} 26. f3 {[%clk 0:01:07.3]} 26...
Rc2 {[%clk 0:01:30.4]} 27. Re1 {[%clk 0:01:03.8]} 27... Nc4 {[%clk 0:01:24.4]}
28. h4 {[%clk 0:00:43.5]} 28... gxh4+ {[%clk 0:01:25]} 29. Kxh4 {[%clk
0:00:44.9]} 29... Rxa2 {[%clk 0:01:25.8]} 30. g5 {[%clk 0:00:45.2]} 30... Nxa3
{[%clk 0:01:15.3]} 31. Kh5 {[%clk 0:00:40.6]} 31... Rh2+ {[%clk 0:01:06.7]} 32.
Kg4 {[%clk 0:00:41.5]} 32... Nc4 {[%clk 0:01:05.3]} 33. Bf4 {[%clk 0:00:40.6]}
33... Ra2 {[%clk 0:00:51.8]} 34. gxf6 {[%clk 0:00:37.1]} 34... gxf6 {[%clk
0:00:52.5]} 35. Kf5 {[%clk 0:00:37.1]} 35... b4 {[%clk 0:00:41.7]} 36. Re6
{[%clk 0:00:37.8]} 36... b3 {[%clk 0:00:42.2]} 37. Rxf6+ {[%clk 0:00:38.7]}
37... Ke7 {[%clk 0:00:43.4]} 38. Bg5 {[%clk 0:00:33.6]} 38... Kd7 {[%clk
0:00:43.7]} 39. Bc1 {[%clk 0:00:20.6]} 39... Rc2 {[%clk 0:00:34.1]} 40. Bf4
{[%clk 0:00:09.4]} 40... b2 {[%clk 0:00:32.7]} 41. Rf7+ {[%clk 0:00:10.9]} 41...
Kc6 {[%clk 0:00:33.8]} 42. Rc7+ {[%clk 0:00:12.1]} 42... Kb5 {[%clk 0:00:33.2]}
43. Rb7+ {[%clk 0:00:12.4]} 43... Nb6 {[%clk 0:00:32]} 44. Bc7 {[%clk
0:00:10.8]} 44... Rxc7 {[%clk 0:00:31.2]} 0-1